bitfinex/quotes_SOLUSD_20260109
["timestamp","ask_amount","ask_price","bid_price","bid_amount"]
[1767966244951,2.80388118,138.53,138.51,0.67154646]
[1767966245112,2.80388118,138.53,138.5,0.67154646]
[1767966245436,7.21816432,138.54,138.5,0.67154646]
[1767966245623,8.20616197,138.53,138.5,0.67154646]
[1767966245828,2.80388118,138.53,138.5,0.67154646]
[1767966246132,5.40276418,138.52,138.5,0.67154646]
[1767966246315,10.0220455,138.54,138.5,0.67154646]
[1767966246634,5.4024511,138.53,138.5,0.67154646]
[1767966246811,10.0220455,138.54,138.5,0.67154646]
[1767966247012,5.40231894,138.53,138.5,0.67154646]
[1767966247221,10.0220455,138.54,138.5,0.67154646]
[1767966247222,5.4027287,138.52,138.5,0.67154646]
[1767966247421,10.0220455,138.54,138.5,0.67154646]
[1767966247731,5.40247538,138.53,138.5,0.67154646]
[1767966247940,10.0220455,138.54,138.5,0.67154646]
[1767966248114,5.40222174,138.53,138.5,0.67154646]
[1767966248311,10.0220455,138.54,138.5,0.67154646]
[1767966248512,8.20669954,138.53,138.5,0.67154646]
[1767966248708,2.80388118,138.53,138.5,0.67154646]
[1767966249136,5.40337355,138.52,138.5,0.67154646]
[1767966249318,10.0220455,138.54,138.5,0.67154646]
[1767966249517,5.40318912,138.53,138.5,0.67154646]
[1767966249732,5.40318912,138.52,138.5,0.67154646]
[1767966249932,10.0220455,138.54,138.5,0.67154646]
[1767966250126,5.40319216,138.53,138.5,0.67154646]
[1767966250328,5.40319216,138.52,138.5,0.67154646]
[1767966250541,10.0220455,138.54,138.5,0.67154646]
[1767966250742,5.40329283,138.53,138.5,0.67154646]
[1767966250914,5.40329283,138.52,138.5,0.67154646]
[1767966251115,10.0220455,138.54,138.5,0.67154646]
[1767966251415,5.40358925,138.53,138.5,0.67154646]
[1767966251614,5.40358925,138.52,138.5,0.67154646]
[1767966251915,2.80388118,138.53,138.5,0.67154646]
[1767966252113,5.40346949,138.52,138.5,0.67154646]
[1767966252412,7.21816432,138.54,138.5,0.67154646]
[1767966252413,10.0220455,138.54,138.5,0.67154646]
[1767966252609,5.40371874,138.53,138.5,0.67154646]
[1767966252837,5.40371874,138.52,138.5,0.67154646]
[1767966253040,10.0220455,138.54,138.5,0.67154646]
[1767966253219,5.40419896,138.53,138.5,0.67154646]
[1767966253418,5.40419896,138.52,138.5,0.67154646]
[1767966253621,10.0220455,138.54,138.5,0.67154646]
[1767966253820,5.40401138,138.53,138.5,0.67154646]
[1767966254020,5.40401138,138.52,138.5,0.67154646]
[1767966254335,10.0220455,138.54,138.5,0.67154646]
[1767966254643,5.40405078,138.53,138.5,0.67154646]
[1767966254820,5.40405078,138.52,138.5,0.67154646]
[1767966255023,10.0220455,138.54,138.5,0.67154646]
[1767966255236,5.40416153,138.53,138.5,0.67154646]
[1767966255438,5.40416153,138.52,138.5,0.67154646]
[1767966255740,10.0220455,138.54,138.5,0.67154646]
[1767966256042,12.623107,138.53,138.5,0.67154646]
[1767966256218,5.4042821,138.52,138.5,0.67154646]
[1767966257544,5.4042821,138.52,138.49,10.12456368]
[1767966257734,15.98388118,138.55,138.5,0.67154646]
[1767966258049,5.40382529,138.54,138.5,0.67154646]
[1767966258246,5.40382529,138.53,138.5,0.67154646]
[1767966258540,15.98388118,138.55,138.5,0.67154646]
[1767966258844,5.40369637,138.54,138.51,0.67154646]
[1767966259047,23.20181396,138.55,138.51,0.67154646]
[1767966259228,5.40316005,138.54,138.51,0.67154646]
[1767966259431,5.40316005,138.53,138.51,0.67154646]
[1767966259630,23.20181396,138.55,138.51,0.67154646]
[1767966259829,5.40349026,138.54,138.51,0.67154646]
[1767966260029,5.40349026,138.53,138.51,0.67154646]
[1767966260257,23.20181396,138.55,138.51,0.67154646]
[1767966260556,5.403505,138.54,138.51,0.67154646]
[1767966260759,5.403505,138.53,138.51,0.67154646]
[1767966260939,23.20181396,138.55,138.51,0.67154646]
[1767966261141,5.403505,138.54,138.51,0.67154646]
[1767966261328,5.403505,138.53,138.51,0.67154646]
[1767966261518,23.20181396,138.55,138.51,0.67154646]
[1767966261722,5.40352625,138.54,138.51,0.67154646]
[1767966261945,5.40352625,138.53,138.51,0.67154646]
[1767966262158,23.20181396,138.55,138.51,0.67154646]
[1767966262448,0.10721488,138.57,138.54,2.80388118]
[1767966263147,0.10721488,138.57,138.55,7.21761097]
[1767966263541,0.10721488,138.57,138.51,18.04890155]
[1767966263744,0.10721488,138.57,138.54,2.80388118]
[1767966264241,0.10721488,138.57,138.54,10.0219434]
[1767966264746,0.71670214,138.59,138.55,2.80388118]
[1767966264926,0.71670214,138.59,138.56,2.80388118]
[1767966265132,0.71670214,138.59,138.56,10.02071811]
[1767966266854,0.71670214,138.59,138.56,7.21683693]
[1767966267158,13.18,138.6,138.56,10.02071811]
[1767966267473,13.89670214,138.6,138.57,2.80388118]
[1767966267624,13.89670214,138.6,138.56,2.80388118]
[1767966268036,0.71670214,138.59,138.56,2.80388118]
[1767966268323,0.71670214,138.59,138.55,2.80388118]
[1767966268528,0.61670214,138.58,138.53,10.02232825]
[1767966268745,0.51670214,138.57,138.53,10.02232825]
[1767966269145,2.90288118,138.58,138.54,0.67154646]
[1767966269734,10.11903053,138.58,138.54,0.67154646]
[1767966269958,2.80388118,138.57,138.54,0.67154646]
[1767966271349,10.11903053,138.58,138.54,0.67154646]
[1767966271529,2.90288118,138.58,138.54,0.67154646]
[1767966273057,0.10313525,138.56,138.53,7.21844707]
[1767966273756,0.10313525,138.56,138.52,10.74386884]
[1767966274344,0.10313525,138.56,138.53,0.72097598]
[1767966275156,7.32027079,138.56,138.52,0.72097598]
[1767966275461,10.12415197,138.56,138.52,0.72097598]
[1767966276036,18.69673011,138.6,138.54,0.72097598]
[1767966276363,0.10313525,138.57,138.54,0.72097598]
[1767966276565,2.90701643,138.57,138.52,10.74395981]
[1767966276860,2.90701643,138.57,138.53,0.72097598]
[1767966276861,5.3929971,138.56,138.53,0.72097598]
[1767966277063,10.12368108,138.57,138.53,0.72097598]
[1767966277248,5.39294258,138.56,138.53,0.72097598]
[1767966277468,10.12368108,138.57,138.53,0.72097598]
[1767966277654,5.39294409,138.56,138.53,0.72097598]
[1767966277966,10.12368108,138.57,138.53,0.72097598]
[1767966278364,5.39288784,138.56,138.53,0.72097598]
[1767966278666,10.12368108,138.57,138.53,0.72097598]
[1767966278857,5.39288784,138.56,138.53,0.72097598]
[1767966279156,10.12368108,138.57,138.53,0.72097598]
[1767966279659,0.10313525,138.57,138.53,10.74348507]
[1767966279966,7.31979388,138.57,138.53,3.52485716]
[1767966280867,0.10313525,138.57,138.53,10.74336906]
[1767966281167,7.31978081,138.57,138.53,10.74336906]
[1767966282564,11.70060203,138.57,138.53,7.93948788]
[1767966282870,11.70060203,138.57,138.53,0.72097598]
[1767966286950,11.70060203,138.57,138.53,7.93957573]
[1767966287573,11.70060203,138.57,138.54,0.72097598]
[1767966289995,0.50843122,138.56,138.52,12.26640474]
[1767966290279,4.88925244,138.56,138.52,7.88558352]
[1767966290462,0.50843122,138.56,138.52,12.26640474]
[1767966290662,0.50843122,138.56,138.53,0.66663795]
[1767966292169,12.11416892,138.57,138.53,0.66663795]
[1767966293778,9.87546422,138.56,138.53,0.66663795]
[1767966293975,4.47982122,138.56,138.53,0.66663795]
[1767966294778,11.59746678,138.57,138.53,0.66663795]
[1767966294981,5.39589553,138.56,138.53,0.66663795]
[1767966295274,12.11416892,138.57,138.53,0.66663795]
[1767966295484,5.39643518,138.56,138.54,0.66663795]
[1767966295685,0.51252511,138.58,138.55,0.66663795]
[1767966295686,13.67252511,138.58,138.55,0.66663795]
[1767966295857,5.3959738,138.57,138.55,0.66663795]
[1767966296177,25.26941648,138.58,138.55,0.66663795]
[1767966296379,5.3964914,138.57,138.55,0.66663795]
[1767966296566,25.26941648,138.58,138.55,0.66663795]
[1767966296765,5.3964914,138.57,138.55,0.66663795]
[1767966296972,25.26941648,138.58,138.55,0.66663795]
[1767966297171,5.39649369,138.57,138.55,0.66663795]
[1767966297374,25.26941648,138.58,138.55,0.66663795]
[1767966297568,5.39707635,138.57,138.55,0.66663795]
[1767966297764,25.26941648,138.58,138.55,0.66663795]
[1767966298078,5.39707635,138.57,138.55,0.66663795]
[1767966298377,25.26941648,138.58,138.55,0.66663795]
[1767966298566,5.39779535,138.57,138.55,0.66663795]
[1767966298764,25.26941648,138.58,138.55,0.66663795]
[1767966298960,5.39779535,138.57,138.55,0.66663795]
[1767966299165,25.26941648,138.58,138.55,0.66663795]
[1767966299367,5.39847537,138.57,138.55,0.66663795]
[1767966299676,4.38082122,138.57,138.55,0.66663795]
[1767966299875,5.39885321,138.56,138.53,0.66663795]
[1767966300175,4.48395647,138.57,138.53,0.66663795]
[1767966300376,5.3993289,138.56,138.53,0.66663795]
[1767966300684,13.16,138.58,138.55,0.66663795]
[1767966301188,5.39866521,138.57,138.55,0.66663795]
[1767966301364,17.54082122,138.58,138.55,0.66663795]
[1767966301684,17.54082122,138.58,138.49,13.54432314]
[1767966301685,4.88925244,138.56,138.51,0.66663795]
[1767966301885,4.38082122,138.52,138.49,0.76663795]
[1767966302781,13.67670214,138.55,138.51,0.70681618]
[1767966303081,9.78236745,138.54,138.51,0.70681618]
[1767966303257,13.67670214,138.55,138.52,0.70681618]
[1767966303258,17.54082122,138.55,138.52,0.70681618]
[1767966303457,5.40218182,138.54,138.52,0.70681618]
[1767966303674,7.73403239,138.56,138.53,0.70681618]
[1767966303675,4.38082122,138.56,138.53,0.70681618]
[1767966303883,3.95164794,138.55,138.53,4.38082122]
[1767966304080,25.27374492,138.58,138.53,4.38082122]
[1767966304468,25.27374492,138.58,138.54,0.70681618]
[1767966304970,13.67670214,138.58,138.54,0.70681618]
[1767966305169,0.71332182,138.57,138.53,4.38082122]
[1767966305572,0.71332182,138.57,138.54,4.38082122]
[1767966305789,0.71332182,138.57,138.54,11.59866126]
[1767966306569,0.71332182,138.57,138.54,7.21784004]
[1767966306774,25.4702673,138.58,138.54,0.70681618]
[1767966307177,21.08944608,138.58,138.54,0.70681618]
[1767966307376,25.4702673,138.58,138.54,0.70681618]
[1767966307989,13.16,138.58,138.55,0.70681618]
[1767966308187,0.71332182,138.61,138.57,4.38082122]
[1767966308488,0.71332182,138.61,138.58,0.70681618]
[1767966308674,0.71332182,138.61,138.57,0.70681618]
[1767966309087,0.71332182,138.6,138.57,0.70681618]
[1767966309283,5.09414304,138.58,138.54,0.70681618]
[1767966309484,4.38082122,138.56,138.52,7.92568978]
[1767966309792,5.09414304,138.57,138.53,7.92545755]
[1767966310265,0.71332182,138.57,138.53,7.92545755]
[1767966311087,0.71332182,138.58,138.54,0.70681618]
[1767966311295,5.09414304,138.58,138.54,0.70681618]
[1767966311995,0.71332182,138.58,138.54,5.0876374]
[1767966312180,0.71332182,138.58,138.55,0.70681618]
[1767966312769,12.30981413,138.59,138.55,0.70681618]
[1767966312974,0.71332182,138.58,138.54,11.59867707]
[1767966314193,0.71332182,138.58,138.54,12.30549325]
[1767966314781,0.71332182,138.58,138.55,4.38082122]
[1767966315981,5.37114324,138.57,138.55,11.5981345]
[1767966316208,0.71332182,138.58,138.55,11.5981345]
[1767966316377,5.37102988,138.57,138.55,11.5981345]
[1767966316578,0.71332182,138.58,138.55,11.5981345]
[1767966316805,5.37103448,138.57,138.55,11.5981345]
[1767966316984,0.71332182,138.58,138.55,11.5981345]
[1767966317184,5.37103448,138.57,138.56,0.70681618]
[1767966317389,5.37103448,138.57,138.56,0.64683362]
[1767966318380,0.71332182,138.59,138.56,0.64683362]
[1767966318581,24.7560294,138.6,138.56,7.86388108]
[1767966318784,5.36920158,138.59,138.56,7.86388108]
[1767966319094,25.46935122,138.6,138.56,0.64683362]
[1767966319287,5.36919877,138.59,138.56,0.64683362]
[1767966319493,25.46935122,138.6,138.56,0.64683362]
[1767966319795,5.36860701,138.59,138.56,0.64683362]
[1767966320007,13.87332182,138.6,138.56,7.86382433]
[1767966320179,5.3685983,138.59,138.56,7.86382433]
[1767966320504,13.87332182,138.6,138.57,0.70681618]
[1767966320689,5.3680946,138.59,138.57,0.70681618]
[1767966320996,13.87332182,138.6,138.57,0.70681618]
[1767966321806,13.87332182,138.6,138.56,12.30462811]
[1767966322911,0.71332182,138.56,138.54,7.21795955]
[1767966323202,0.71332182,138.57,138.54,7.21795955]
[1767966324107,5.09414304,138.58,138.54,7.92477573]
[1767966325007,0.71332182,138.58,138.54,12.30559695]
[1767966327308,11.59656939,138.59,138.55,7.92431562]
[1767966327689,12.30989121,138.59,138.55,7.92431562]
[1767966329014,0.71332182,138.59,138.56,0.70681618]
[1767966331126,18.25414304,138.6,138.56,7.92384516]
[1767966331291,25.46918405,138.6,138.57,0.70681618]
[1767966331492,25.46918405,138.6,138.56,7.21702898]
[1767966331718,25.46918405,138.6,138.56,7.92384516]
[1767966335198,0.65670106,138.61,138.57,0.70409195]
[1767966335413,0.65670106,138.6,138.56,11.5978502]
[1767966335612,0.65670106,138.59,138.56,11.5978502]
[1767966335796,5.03752228,138.61,138.57,0.70409195]
[1767966336729,0.65670106,138.6,138.56,12.30194215]
[1767966337020,5.03752228,138.59,138.55,7.92144996]
[1767966337812,0.65670106,138.59,138.55,7.92144996]
[1767966338316,0.65670106,138.58,138.55,7.92144996]
[1767966340308,0.65670106,138.58,138.53,0.70409195]
[1767966341122,0.65670106,138.57,138.53,0.70409195]
[1767966341722,0.65670106,138.56,138.52,7.92303825]
[1767966342916,3.4607826,138.56,138.52,7.92303825]
[1767966346923,0.65670106,138.56,138.52,7.92303825]
[1767966347126,3.4607826,138.56,138.52,7.92303825]
[1767966347306,3.4607826,138.56,138.52,10.72711979]
[1767966347307,0.65670106,138.56,138.52,10.72711979]
[1767966348808,0.65670106,138.56,138.52,7.92303825]
[1767966349004,0.65670106,138.56,138.52,10.72711979]
[1767966351412,0.65670106,138.56,138.52,7.92303825]
[1767966351601,0.65670106,138.56,138.52,10.72711979]
[1767966352411,0.65670106,138.56,138.52,7.92303825]
[1767966352610,0.65670106,138.56,138.52,10.72711979]
[1767966355428,13.81670106,138.56,138.52,10.72711979]
[1767966357434,13.81670106,138.56,138.52,7.92303825]
[1767966357615,13.81670106,138.56,138.52,10.72711979]
[1767966360838,16.6207826,138.56,138.52,10.72711979]
[1767966362346,16.6207826,138.56,138.52,7.92303825]
[1767966362649,16.6207826,138.56,138.52,10.72711979]
[1767966367236,16.6207826,138.56,138.52,7.92303825]
[1767966367440,16.6207826,138.56,138.52,10.72711979]
[1767966367940,13.81670106,138.56,138.53,0.71998257]
[1767966368127,13.81927748,138.57,138.54,0.71998257]
[1767966368738,0.65927748,138.56,138.53,3.52406411]
[1767966369332,0.65927748,138.56,138.53,10.74240588]
[1767966371246,0.65927748,138.56,138.53,7.93832434]
[1767966372564,0.65927748,138.55,138.52,7.93890351]
[1767966373945,0.65927748,138.55,138.52,7.21892094]
[1767966374547,0.65927748,138.55,138.52,7.93890351]
[1767966380951,0.65927748,138.55,138.52,10.74298505]
[1767966381749,15.96408154,138.57,138.52,10.74298505]
[1767966381933,13.18,138.57,138.54,3.52406411]
[1767966383058,13.83927748,138.57,138.54,10.2418876]
[1767966383345,13.83927748,138.57,138.54,7.21782349]
[1767966383947,13.83927748,138.57,138.54,6.21782349]
[1767966385144,0.65927748,138.58,138.55,0.40331529]
[1767966385450,0.65927748,138.6,138.56,3.20739683]
[1767966386152,0.65927748,138.6,138.57,0.40331529]
[1767966386948,0.65927748,138.6,138.57,7.6196245]
[1767966406572,0.65927748,138.6,138.57,7.21630921]
[1767966407376,5.03763599,138.6,138.57,7.21630921]
[1767966407580,0.69887869,138.58,138.55,7.21761097]
[1767966407776,4.37835851,138.59,138.53,0.40331529]
[1767966407777,5.03298052,138.57,138.53,0.40331529]
[1767966407956,0.65462201,138.57,138.54,0.40331529]
[1767966408854,0.65462201,138.57,138.54,11.99966911]
[1767966409677,13.81462201,138.59,138.56,0.40331529]
[1767966409870,0.65462201,138.59,138.56,0.40331529]
[1767966410460,0.65462201,138.59,138.56,4.7816738]
[1767966410679,7.21518405,138.6,138.57,4.7816738]
[1767966410680,0.65462201,138.6,138.57,4.7816738]
[1767966411365,0.65462201,138.6,138.57,11.99821191]
[1767966411569,0.65462201,138.6,138.57,0.40331529]
[1767966412166,0.65462201,138.6,138.57,7.61981913]
[1767966414090,0.65462201,138.59,138.55,7.21727952]
[1767966414285,5.03298052,138.58,138.55,7.21727952]
[1767966415493,5.03298052,138.58,138.55,7.62059481]
[1767966416192,0.65462201,138.58,138.55,7.62059481]
[1767966421481,0.65462201,138.58,138.55,7.21727952]
[1767966421679,0.65462201,138.58,138.55,6.49227952]
[1767966424288,11.59342409,138.6,138.56,0.67699866]
[1767966424289,0.70600972,138.59,138.56,0.67699866]
[1767966425889,0.70600972,138.58,138.54,12.27327236]
[1767966426207,0.70600972,138.58,138.54,7.89491385]
[1767966426383,0.70600972,138.58,138.55,7.21752831]
[1767966426700,0.70600972,138.58,138.55,7.89452697]
[1767966428705,0.70600972,138.58,138.55,0.67699866]
[1767966429500,0.70600972,138.58,138.53,12.27384365]
[1767966429501,0.70600972,138.57,138.53,12.27384365]
[1767966430002,0.70600972,138.57,138.53,7.89548514]
[1767966430204,0.70600972,138.57,138.53,12.27384365]
[1767966431685,0.70600972,138.56,138.51,5.05535717]
[1767966431886,0.70600972,138.56,138.52,7.21914068]
[1767966432085,0.70600972,138.56,138.52,7.89613934]
[1767966432507,0.70600972,138.56,138.52,0.67699866]
[1767966432699,0.70600972,138.56,138.49,80.05143566]
[1767966432700,0.70600972,138.53,138.49,0.77699866]
[1767966432882,0.70600972,138.53,138.49,7.9974302]
[1767966432883,0.70600972,138.52,138.49,7.9974302]
[1767966433203,5.08436823,138.53,138.49,7.9974302]
[1767966434210,20.37802382,138.55,138.47,0.67699866]
[1767966434211,5.08436823,138.51,138.47,0.67699866]
[1767966434409,13.16,138.52,138.46,4.37835851]
[1767966434410,13.16,138.52,138.48,5.05535717]
[1767966434908,13.16,138.52,138.48,12.27631579]
[1767966436105,24.75787216,138.52,138.48,0.67699866]
[1767966436407,4.37835851,138.51,138.48,0.67699866]
[1767966436610,5.08436823,138.51,138.48,0.67699866]
[1767966436912,5.05436824,138.51,138.48,0.67699866]
[1767966437095,5.05436824,138.51,138.47,7.89844989]
[1767966437889,4.37835851,138.5,138.47,0.67699866]
[1767966438798,4.37835851,138.49,138.47,0.67699866]
[1767966438997,4.37835851,138.5,138.47,0.67699866]
[1767966440784,4.37835851,138.49,138.47,0.67699866]
[1767966441284,4.37835851,138.48,138.46,0.67699866]
[1767966442186,0.70600972,138.49,138.46,7.8992565]
[1767966442412,5.08436823,138.49,138.46,7.8992565]
[1767966442801,5.08436823,138.47,138.44,8.00014259]
[1767966442999,4.37835851,138.46,138.44,0.77699866]
[1767966444413,4.37835851,138.45,138.44,0.1]
[1767966444593,4.37835851,138.46,138.44,8.00034451]
[1767966444786,0.70600972,138.48,138.45,0.67699866]
[1767966445004,5.08436823,138.49,138.45,0.67699866]
[1767966445510,0.70600972,138.49,138.45,0.67699866]
[1767966445712,5.08436823,138.49,138.45,0.67699866]
[1767966446415,5.08436823,138.46,138.44,0.1]
[1767966447815,0.70600972,138.46,138.44,0.1]
[1767966448197,5.08436823,138.46,138.44,0.1]
[1767966449207,0.70600972,138.45,138.43,0.1]
[1767966449407,5.08436823,138.44,138.42,0.1]
[1767966449608,4.37835851,138.43,138.42,0.1]
[1767966449816,4.31835853,138.43,138.42,0.1]
[1767966450108,0.70600972,138.43,138.41,7.32476265]
[1767966450295,0.70600972,138.46,138.41,0.77699866]
[1767966450486,5.08436823,138.45,138.41,0.77699866]
[1767966450915,5.08436823,138.44,138.41,0.77699866]
[1767966451510,4.37835851,138.43,138.41,0.1]
[1767966452109,0.70600972,138.44,138.41,0.1]
[1767966452311,4.47702714,138.42,138.39,8.00281961]
[1767966453114,0.09866863,138.42,138.39,8.00281961]
[1767966453410,0.09866863,138.42,138.39,0.77699866]
[1767966453914,4.47702714,138.42,138.39,0.77699866]
[1767966454312,4.47702714,138.42,138.39,0.1]
[1767966457398,0.68397039,138.41,138.39,0.1]
[1767966458519,0.68397039,138.41,138.37,0.1]
[1767966458520,0.52305627,138.38,138.37,0.1]
[1767966458726,0.52305627,138.38,138.35,0.78585184]
[1767966458727,4.90141478,138.38,138.35,0.1]
[1767966458901,4.37835851,138.37,138.35,0.1]
[1767966459502,4.37835851,138.37,138.33,7.91489198]
[1767966459503,4.37835851,138.36,138.33,7.91489198]
[1767966459700,4.98991575,138.35,138.32,0.68585184]
[1767966460318,4.98991575,138.35,138.32,7.91514015]
[1767966461039,0.61155724,138.35,138.32,0.68585184]
[1767966461340,4.37835851,138.39,138.31,0.68585184]
[1767966461341,4.37835851,138.33,138.31,0.68585184]
[1767966461624,4.37835851,138.33,138.3,0.88585184]
[1767966462825,4.98904844,138.33,138.3,7.430475]
[1767966463128,4.98904844,138.33,138.28,0.2]
[1767966463129,0.52652639,138.3,138.28,0.2]
[1767966463334,4.37835851,138.27,138.26,0.4389213]
[1767966463633,0.41100674,138.28,138.26,0.4389213]
[1767966463807,0.38100675,138.28,138.24,7.23348006]
[1767966464006,0.38100675,138.28,138.24,7.9193319]
[1767966464007,4.37835851,138.28,138.24,7.9193319]
[1767966464226,17.55835851,138.32,138.24,7.9193319]
[1767966464603,7.2301352,138.31,138.24,7.9193319]
[1767966465205,7.2301352,138.31,138.23,7.92005659]
[1767966465206,25.3054732,138.31,138.23,7.92005659]
[1767966465417,25.3054732,138.31,138.24,7.23377282]
[1767966465418,13.18,138.3,138.24,7.23377282]
[1767966465615,13.18,138.3,138.25,0.68585184]
[1767966466019,13.55276343,138.3,138.25,0.68585184]
[1767966466335,0.099,138.29,138.25,0.68585184]
[1767966467211,0.099,138.29,138.22,7.92069484]
[1767966468011,0.099,138.29,138.23,0.65711027]
[1767966468535,0.099,138.29,138.23,7.89135384]
[1767966468708,0.099,138.29,138.24,0.65711027]
[1767966468914,13.279,138.29,138.24,0.65711027]
[1767966469238,0.37002579,138.28,138.24,0.65711027]
[1767966469917,13.18,138.29,138.24,0.65711027]
[1767966470147,20.78376144,138.3,138.24,0.65711027]
[1767966470437,0.37276343,138.31,138.26,0.65711027]
[1767966470732,20.40993174,138.32,138.26,0.65711027]
[1767966470733,13.18,138.32,138.26,0.65711027]
[1767966470942,13.279,138.33,138.26,0.65711027]
[1767966471236,0.37002579,138.32,138.26,0.65711027]
[1767966471733,20.40911781,138.33,138.26,0.65711027]
[1767966472407,20.50811781,138.33,138.28,0.65711027]
[1767966472733,0.37002579,138.32,138.28,0.65711027]
[1767966473318,0.37002579,138.32,138.27,7.88933707]
[1767966474540,0.37002579,138.32,138.28,0.65711027]
[1767966475121,13.57276343,138.34,138.28,0.65711027]
[1767966476744,0.099,138.33,138.28,7.88874081]
[1767966477127,0.099,138.33,138.29,0.65711027]
[1767966479742,0.099,138.33,138.29,7.88809292]
[1767966479913,0.099,138.33,138.29,0.65711027]
[1767966480120,0.099,138.33,138.26,0.65711027]
[1767966480829,0.099,138.33,138.28,0.65711027]
[1767966482421,0.099,138.33,138.29,0.65711027]
[1767966482621,38.50003799,138.34,138.29,0.65711027]
[1767966482622,13.2,138.34,138.29,0.65711027]
[1767966482928,13.299,138.34,138.29,0.65711027]
[1767966483644,13.299,138.34,138.28,7.23164668]
[1767966483645,13.2,138.34,138.31,0.69143976]
[1767966484351,13.299,138.34,138.3,7.92209774]
[1767966484550,13.2,138.34,138.31,0.69143976]
[1767966484750,20.79861215,138.34,138.3,0.69143976]
[1767966485754,13.57002579,138.34,138.3,7.921813]
[1767966485928,13.2,138.34,138.31,0.69143976]
[1767966486832,0.37276343,138.37,138.31,0.69143976]
[1767966488150,7.59977944,138.37,138.33,0.69143976]
[1767966489052,7.22701601,138.37,138.33,0.69143976]
[1767966489236,7.22701601,138.37,138.34,0.69143976]
[1767966489633,0.099,138.4,138.34,0.69143976]
[1767966489824,13.299,138.4,138.34,0.69143976]
[1767966490650,0.37002579,138.39,138.34,0.69143976]
[1767966490854,0.37002579,138.39,138.35,0.69143976]
[1767966491149,20.42564306,138.4,138.35,0.69143976]
[1767966491150,20.52464306,138.4,138.35,0.69143976]
[1767966491330,0.37002579,138.39,138.34,7.91972892]
[1767966491533,0.37002579,138.39,138.35,0.69143976]
[1767966491738,3.18082778,138.39,138.35,0.69143976]
[1767966491951,20.42564306,138.4,138.35,0.69143976]
[1767966492255,2.81080199,138.39,138.36,0.69143976]
[1767966492630,0.10436659,138.36,138.29,0.69143976]
[1767966492949,2.81080199,138.32,138.29,7.92262061]
[1767966493154,2.81080199,138.33,138.3,0.69143976]
[1767966493861,2.81080199,138.34,138.3,0.69143976]
[1767966494233,13.57276343,138.36,138.31,0.69143976]
[1767966494535,16.38356542,138.36,138.31,0.69143976]
[1767966494737,16.01080199,138.36,138.31,0.69143976]
[1767966495250,13.2,138.36,138.32,0.69143976]
[1767966495438,16.01080199,138.36,138.32,0.69143976]
[1767966496240,13.2,138.36,138.33,0.69143976]
[1767966497238,13.2,138.36,138.33,7.92041833]
[1767966497440,18.06423645,138.4,138.34,0.69143976]
[1767966497441,20.42613655,138.39,138.34,0.69143976]
[1767966497737,2.81080199,138.38,138.34,0.69143976]
[1767966498554,20.52513655,138.39,138.34,7.91993169]
[1767966498753,2.81080199,138.37,138.34,7.91993169]
[1767966499558,0.37002579,138.38,138.34,0.69143976]
[1767966499750,2.81080199,138.36,138.34,0.69143976]
[1767966499954,0.37002579,138.38,138.34,0.69143976]
[1767966500263,2.81080199,138.36,138.34,0.69143976]
[1767966500628,2.81080199,138.37,138.34,7.91995771]
[1767966500832,2.81080199,138.38,138.35,0.69143976]
[1767966501046,20.52450269,138.4,138.35,0.69143976]
[1767966501282,2.81080199,138.39,138.35,0.69143976]
[1767966501447,20.52450269,138.4,138.35,0.69143976]
[1767966501646,2.81080199,138.39,138.35,0.69143976]
[1767966503434,2.81080199,138.39,138.36,0.69143976]
[1767966503636,2.81080199,138.39,138.36,0.63143976]
[1767966507262,2.81080199,138.38,138.35,7.91924573]
[1767966507941,2.81080199,138.38,138.36,0.69143976]
[1767966508675,0.10230426,138.38,138.33,0.69143976]
[1767966508960,2.81080199,138.34,138.31,7.92123079]
[1767966509162,2.81080199,138.33,138.3,7.23059676]
[1767966509367,2.81080199,138.31,138.29,7.9225478]
[1767966509559,0.10871683,138.33,138.29,7.9225478]
[1767966509560,0.43276343,138.36,138.3,0.69143976]
[1767966509762,2.81080199,138.33,138.3,0.69143976]
[1767966510263,2.81080199,138.33,138.3,7.92203729]
[1767966511166,7.22833013,138.35,138.31,0.69143976]
[1767966511467,2.81080199,138.35,138.31,0.69143976]
[1767966511665,7.22757852,138.36,138.31,0.69143976]
[1767966511848,2.81080199,138.35,138.31,0.69143976]
[1767966512250,2.81080199,138.35,138.32,0.69143976]
[1767966513471,2.81080199,138.34,138.32,0.69143976]
[1767966514469,2.81080199,138.34,138.31,0.68155807]
[1767966515249,2.81080199,138.34,138.31,7.91158782]
[1767966515566,2.81080199,138.34,138.32,0.68155807]
[1767966516269,2.81080199,138.33,138.3,0.68155807]
[1767966516465,2.88310626,138.33,138.29,7.91273892]
[1767966516770,2.81080199,138.32,138.29,7.91273892]
[1767966517292,2.81080199,138.31,138.28,7.91310734]
[1767966517587,2.81080199,138.31,138.28,0.68155807]
[1767966518256,2.81080199,138.32,138.29,0.68155807]
[1767966520257,0.40276344,138.33,138.3,0.68155807]
[1767966520459,10.44275816,138.33,138.29,0.68155807]
[1767966520672,2.90980199,138.32,138.28,0.68155807]